Cogmind - Beta 11.1 *** ADVENTURER MODE // 2022.07.05 @ 06:58:58 Player: Olexender Result: Destroyed by as-55858 with Assembled Blade Performance ------------- Evolutions (0) 0 Regions Visited (2) 400 Robots Destroyed (16) 80 Value Destroyed (246) 246 Prototype IDs (4) 80 Alien Tech Used (0) 0 Bonus (0) 0 TOTAL SCORE: 806 Bonus ------- None Cogmind --------- Core Integrity 0/250 Matter 128/300 Energy 98/100 System Corruption 4% Temperature Cool (20) Movement Rolling (100) Location -10/Mines Parts ------- > --- POWER (1) -------- (None) > --- PROPULSION (2) --- Compact Wheel Compact Wheel > --- UTILITY (2) ------ Medium Storage Unit > --- WEAPON (2) ------- (None) > --- INVENTORY (10) --- Light Ion Engine High-capacity Battery (250) High-capacity Matter Pod (155) Improved Terrain Scanner Seismic Detector ECM Suite ECM Suite Peak State ------------ > --- POWER ------------ Improved Ion Engine > --- PROPULSION ------- Aluminum Leg Aluminum Leg > --- UTILITY ---------- Medium Storage Unit ECM Suite > --- WEAPON ----------- Assault Rifle Assault Rifle > --- INVENTORY -------- Compact Wheel Compact Wheel High-capacity Battery High-capacity Matter Pod Structural Scanner Improved Terrain Scanner Seismic Detector ECM Suite [Rating: 9] Favorites ----------- Power Improved Ion Engine Engine Improved Ion Engine Propulsion Aluminum Leg Leg Aluminum Leg Wheel Compact Wheel Utility Medium Storage Unit Device Structural Scanner Storage Medium Storage Unit Weapon Assault Rifle Energy Gun EM Pulse Gun Ballistic Gun Assault Rifle Build | -11 -10 -10 ------- Run | Scr Mat Min Slots Evolved . | . . . Power . | . . . Propulsion . | . . . Utility . | . . . Weapon . | . . . Parts Attached 21 | 8 11 2 Power 2 | 1 1 . Engine 2 | 1 1 . Core . | . . . Reactor . | . . . Propulsion 6 | 4 . 2 Treads . | . . . Leg 2 | 2 . . Wheel 4 | 2 . 2 Hover . | . . . Flight . | . . . Utility 10 | . 10 . Device 7 | . 7 . Storage 3 | . 3 . Processor . | . . . Hackware . | . . . Protection . | . . . Artifact . | . . . Weapon 3 | 3 . . Energy Gun 1 | 1 . . Energy Cannon . | . . . Ballistic Gun 2 | 2 . . Ballistic Cannon . | . . . Launcher . | . . . Special Weapon . | . . . Impact Weapon . | . . . Slashing Weapon . | . . . Piercing Weapon . | . . . Special Melee Weapon . | . . . Unidentified Prototypes . | . . . Parts Lost 6 | . . 6 Power 1 | . . 1 Propulsion 2 | . . 2 Utility 1 | . . 1 Weapon 2 | . . 2 Highest Loss Streak 6 | . . 6 To Critical Strikes . | . . . Average Slot Usage (%) 93 | . 94 92 Engine 13 | . 14 12 Leg 27 | . 28 22 Device 14 | . 14 12 Storage 8 | . 8 14 Ballistic Gun 27 | . 28 25 Naked Turns . | . . . Heaviest Build 49 | 9 49 22 Greatest Support 32 | 26 20 32 Greatest Overweight (x) 2 | 2 2 1 Average Overweight (x) . | . . . Largest Inventory Capacity 20 | 5 20 10 Average Capacity 8 | 5 8 10 Most Carried 9 | 5 9 8 Average Carried 6 | 3 6 7 Final Capacity 10 | 5 10 10 Final Carried 8 | 5 8 7 Class Distribution -------------------- 100% | Mutant Dominant Class ---------------- Mutant | -10/Materials Mutant | -10/Mines Resources | -11 -10 -10 ----------- Run | Scr Mat Min Matter Collected 741 | 334 407 . Remotely . | . . . Salvage Created 574 | 136 367 71 Parts 37 | 15 22 . Haulers Intercepted 2 | . 2 . Recyclers Shooed 1 | 1 . . Parts Field Recycled . | . . . Retrieved Matter . | . . . Parts Self-Destructed . | . . . Prevented . | . . . Kills | -11 -10 -10 ------- Run | Scr Mat Min Combat Hostiles Destroyed 14 | . 9 5 Guns 14 | . 9 5 Classes Destroyed 7 | 2 4 1 Tunneler 3 | 3 . . Hauler 2 | . 2 . Recycler 1 | 1 . . Watcher 1 | . 1 . Swarmer 5 | . 5 . Grunt 4 | . 4 . Assembled 5 | . . 5 Best Kill Streak 3 | 2 3 3 Combat Bots Only 3 | . 3 3 Max Kills in Single Turn 1 | 1 1 1 Gunslinging . | . . . Exploded . | . . . Melee . | . . . Uniques/NPCs Destroyed . | . . . Combat | -11 -10 -10 -------- Run | Scr Mat Min Damage Taken 896 | . 312 584 Core 275 | . 40 235 Absorbed by Shields . | . . . Regen/Repaired (Parts) 350 | . 350 . Core Remaining (%) 100 | 100 . . Volleys Fired 63 | 11 36 16 Largest 2 | 2 2 2 Hottest 40 | 40 40 40 Shots Fired 126 | 22 72 32 Gun 126 | 22 72 32 Cannon . | . . . Launcher . | . . . Special . | . . . Kinetic 126 | 22 72 32 Thermal . | . . . Explosive . | . . . Electromagnetic . | . . . Robot Hit Streak 24 | 5 24 8 Robot Miss Streak 4 | 2 3 4 Penetration Max . | . . . Secondary Targets 3 | . 1 2 Max Gunslinging Chain 1 | . 1 1 Shots Hit Robots 91 | 15 54 22 Core Hits 36 | 5 20 11 Critical Kills 1 | . 1 . Critical Parts Destroyed . | . . . Critical Strikes 1 | . 1 . Destroy 1 | . 1 . Melee Attacks . | . . . Impact . | . . . Slashing . | . . . Piercing . | . . . Sneak Attacks . | . . . Combat Hostiles . | . . . Follow-up Attacks . | . . . Damage Inflicted 1177 | 228 666 283 Guns 1177 | 228 666 283 Cannons . | . . . Explosions . | . . . Melee . | . . . Ramming . | . . . Kinetic 1177 | 228 666 283 Thermal . | . . . Explosive . | . . . Electromagnetic . | . . . Impact . | . . . Slashing . | . . . Piercing . | . . . Highest Corruption 4 | . . 4 Average Corruption 4 | . . 4 Corruption Purged . | . . . Corruption Blocked . | . . . Overload Shots . | . . . Overflow Damage . | . . . Projectiles . | . . . Explosions . | . . . Melee . | . . . Knockbacks . | . . . Impact . | . . . Kinetic . | . . . Secondary . | . . . Self-Inflicted Damage . | . . . Shots . | . . . Rammed . | . . . Targets Rammed . | . . . Kicked . | . . . Crushed . | . . . Highest Temperature 20 | 6 3 20 Average Temperature 9 | 6 3 10 Received Heat Transfer 281 | . 141 140 Siege Activations . | . . . Robots Corrupted . | . . . Combat Hostiles . | . . . Parts Fried . | . . . Impact Corruptions . | . . . Robots Melted . | . . . Combat Hostiles . | . . . Parts Melted . | . . . Heat Transferred . | . . . Parts Sabotaged . | . . . Parts Stolen . | . . . Parts Stripped . | . . . Power Chain Reactions . | . . . Missiles Intercepted . | . . . Alert | -11 -10 -10 ------- Run | Scr Mat Min Peak Influence 193 | 20 193 . Initial 11 | . 11 . Average 65 | 7 76 . Maximum Alert Level . | . . . Low Security (%) 100 | 100 100 100 Level 1 . | . . . Level 2 . | . . . Level 3 . | . . . Level 4 . | . . . Level 5 . | . . . High Security . | . . . Max Security . | . . . Squads Dispatched 2 | . 2 . Investigation 2 | . 2 . Extermination . | . . . Reinforcement . | . . . Assault . | . . . Garrison . | . . . Intercept . | . . . Searches Triggered . | . . . Construction Impeded . | . . . Haulers Reinforced . | . . . Active Scanning Responses . | . . . Cargo Convoy Interrupts . | . . . Stealth | -11 -10 -10 --------- Run | Scr Mat Min Distress Signals 1 | . 1 . Communications Jammed . | . . . Distress Signals . | . . . Times Spotted 37 | . 18 19 Peak Tracking Total 14 | . 3 14 Tactical Retreats 6 | . 5 1 Traps | -11 -10 -10 ------- Run | Scr Mat Min Traps Triggered 5 | . 5 . Indirectly . | . . . Trap Hack Attempts . | . . . Triggered . | . . . Disarmed . | . . . Reprogrammed . | . . . Reused . | . . . Traps Extracted . | . . . Installed . | . . . Triggered . | . . . Machines | -11 -10 -10 ---------- Run | Scr Mat Min Machines Disabled . | . . . Max in Single Turn . | . . . Machines Sabotaged . | . . . Garrisons Compromised . | . . . Overloaded Fab Kills . | . . . Hacking | -11 -10 -10 --------- Run | Scr Mat Min Machines Accessed 10 | . 10 . Terminals 7 | . 7 . Fabricators . | . . . Repair Stations 1 | . 1 . Recycling Units 2 | . 2 . Scanalyzers . | . . . Garrison Access . | . . . Total Hacks 30 | . 30 . Successful 18 | . 18 . Failed 12 | . 12 . Catastrophic 1 | . 1 . Database Lockouts . | . . . Manual . | . . . Terminals 24 | . 24 . Fabricators . | . . . Repair Stations 2 | . 2 . Recycling Units 4 | . 4 . Scanalyzers . | . . . Garrison Access . | . . . Terminal Hacks 13 | . 13 . Record 1 | . 1 . Prototype ID Bank 2 | . 2 . Level Access Points 1 | . 1 . Emergency Access Points 1 | . 1 . Alert Level 1 | . 1 . Unreport Threat 2 | . 2 . Locate Traps 1 | . 1 . Dispatch Records 1 | . 1 . Transport Status 1 | . 1 . Hauler Manifests 1 | . 1 . Registered Components 1 | . 1 . Fabricator Hacks . | . . . Repair Station Hacks 2 | . 2 . Scan Component 1 | . 1 . Repair 1 | . 1 . Recycling Unit Hacks 3 | . 3 . Report Inventory 2 | . 2 . Retrieve Components 1 | . 1 . Scanalyzer . | . . . Garrison Access Hacks . | . . . Unauthorized Hacks . | . . . Terminals . | . . . Fabricators . | . . . Repair Stations . | . . . Recycling Units . | . . . Scanalyzers . | . . . Garrison Access . | . . . Data Cores Recovered . | . . . Used . | . . . Hacking Detections 5 | . 5 . Full Trace Events 4 | . 4 . Feedback Events . | . . . Feedback Blocked . | . . . Robot Schematics Acquired . | . . . Robots Built . | . . . Authchips . | . . . Time . | . . . Total Robot Build Rating . | . . . Part Schematics Acquired . | . . . Parts Built . | . . . Authchips . | . . . Time . | . . . Total Part Build Rating . | . . . Parts Repaired 1 | . 1 . Time 26 | . 26 . Parts Recycled . | . . . Recycled Matter . | . . . Retrieved Matter . | . . . Retrieved Components 3 | . 3 . Parts Scanalyzed . | . . . Part Schematics Acquired . | . . . Parts Damaged . | . . . Bothacking | -11 -10 -10 ------------ Run | Scr Mat Min Used RIF Installer . | . . . Robots Hacked . | . . . Non-combat . | . . . Combat . | . . . Robot Hacks Applied . | . . . Relay Couplers Released . | . . . Fabnet Peak Effective % . | . . . Robots Rewired . | . . . Allies Hacked . | . . . Hacks Repelled . | . . . Allies | -11 -10 -10 -------- Run | Scr Mat Min Total Allies . | . . . Largest Group . | . . . Highest-Rated Group . | . . . Highest-Rated Ally . | . . . Total Orders . | . . . Ally Attacks . | . . . Total Damage . | . . . Kills . | . . . Allies Corrupted . | . . . Allies Melted . | . . . Intel | -11 -10 -10 ------- Run | Scr Mat Min Robot Analysis Total . | . . . Derelict Logs Recovered . | . . . Drone Launches . | . . . Drone Recoveries . | . . . Exploration | -11 -10 -10 ------------- Run | Scr Mat Min Turns Passed 1551 | 127 1318 106 Spaces Moved 825 | 73 721 31 Core 16 | 16 . . Treads . | . . . Legs 789 | 41 721 27 Wheels 20 | 16 . 4 Hover . | . . . Flight . | . . . Fastest Speed 50 | 50 120 100 Average Speed 153 | 102 157 178 Slowest Speed 260 | 150 260 190 Overloaded Moves . | . . . Propulsion Burnouts . | . . . Robots Hopped . | . . . Cave-ins Triggered . | . . . Exploration Rate (%) 37 | 4 97 12 Regions Visited 2 Branch Regions 1 Pre-discovered Areas . | . . . Known Exits Taken . | . . . Unknown Exits Taken 2 | 1 1 . Scrap Searched . | . . . Spaces Dug . | . . . Terrain Destroyed . | . . . Melee . | . . . Projectile . | . . . AOE . | . . . Terrain Rammed . | . . . Walls Destroyed . | . . . Machines Disabled . | . . . Actions | -11 -10 -10 --------- Run | Scr Mat Min Total 988 | 102 836 50 Wait 49 | . 49 . Move 823 | 72 720 31 Hop . | . . . Pick Up 21 | 9 11 1 Fast Attach 6 | 3 3 . Attach 8 | 3 3 2 Detach . | . . . Swap 7 | 2 5 . Drop 11 | 2 9 . Fire 63 | 11 36 16 Melee . | . . . Ram . | . . . Kick . | . . . Crush . | . . . Escape Stasis . | . . . Rewire . | . . . Trap . | . . . Miscellaneous . | . . . Route ------- -11/Scrapyard -10/Materials (discovered 5 exits: *Mat x3 / [*Min x2]) -10/Mines History --------- Turn | Location | Event 17 | -11/Scrapyard | Discovered new exit (range 15) 128 | -11/Scrapyard | Entered Materials 311 | -10/Materials | Build established: Mutant 313 | -10/Materials | Repaired Hcp. Storage Unit? 317 | -10/Materials | Discovered new exit (range 5) 334 | -10/Materials | Identified exit to Materials 1115 | -10/Materials | Discovered new exit (range 7) 1431 | -10/Materials | Discovered new exit (range 8) 1446 | -10/Materials | Entered Mines 1484 | -10/Mines | Assembled infested the area 1489 | -10/Mines | Assisted by a Guerilla fighting off Assembled 1543 | -10/Mines | Core integrity fell below 50% 1550 | -10/Mines | Core integrity fell below 20% 1552 | -10/Mines | Destroyed by as-55858 with Assembled Blade Last Messages --------------- 01491_ K-01 Serf cleans the Laser Drill. 01498_ as-36960 destroyed. 01498_ K-01 Serf cleans the Laser Drill. 01504_ as-03540 destroyed. 01504_ Switching to secondary target: as-30963. 01507_ K-01 Serf collects debris. 01510_ K-01 Serf destroyed. 01524_ Aluminum Leg destroyed. 01525_ as-30963 destroyed. 01531_ as-50237 destroyed. 01531_ Switching to secondary target: as-02754. 01534_ as-02754 destroyed. 01542_ Laser Drill disabled. 01544_ Assault Rifle destroyed. 01545_ Aluminum Leg destroyed. 01545_ System corrupted by crushing effect (+1). 01545_ System corrupted by crushing effect (+3). 01547_ Structural Scanner destroyed. 01549_ Imp. Ion Engine destroyed. 01551_ Acquired Lgt. Ion Engine. Map ----- +----------------------------------------------------+ | ?????????????????????????????????? | | ?????????????????????????????????? | | ?????????????????????????????????? | | ?????????????????????????????????? | | ?????????????????????????????????? | | ?????????????????????????????????? | | ?????????????????????????????????? | | ?????????????????????????????????? | | ?????????????????????????????????? | | ?????????????????????????????????? | | ?????????????????????????????????? | | ?????????????????????????????????? | | ?????????????????????????????????? | | ?????????????????????????????????? | | ?????????????#########???#####???? | | ????????????################## ##? | | ???????????#### ###### ## ### | | ???????????### #### # ### | | ??????####### ### | | ??????####### """ ### | | ??????## """ ## ##??? | | ?####### ####### """ ##??? | | ?####### ######## ###??? | | ?## ##?#### ### ####??? | | ?## a aa ##??####### ####???? | | ?## """!a@ ##???###### ####????? | | ?##a"""%aa ##???????## ####?????? | | ?## """= ##???????#######??????? | | ?## aa ##???????######???????? | | ?## " " a ##????????????????????? | | ?## """a % ##????????????????????? | | ?## """ aa ##????????????????????? | | ?## a ##????????????????????? | | ?######$#####????????????????????? | | ?###### #####????????????????????? | | ?????## ?????????????????????????? | | ?????## ?????????????????????????? | | ?????##%?????????????????????????? | | ?????## ????????????????????????? | | ????? ###????????????????????????? | | ????? #????????????????????????? | | ?????????????????????????????????? | | ?????????????????????????????????? | | ?????????????????????????????????? | | ?????????????????????????????????? | | ?????????????????????????????????? | | ?????????????????????????????????? | | ?????????????????????????????????? | | ?????????????????????????????????? | | ?????????????????????????????????? | +----------------------------------------------------+ Best States ------------- Heat Dissipation 25 Energy Generation 12 Energy Capacity 265 Matter Stores 300 Matter Capacity 300 Sight Range 16 Terrain Scan Density 10 ECM Strength 1 Resistance: KI 20 Resistance: TH 20 Resistance: EX 20 Resistance: EM 20 Resistance: I 20 Resistance: S 20 Resistance: P 20 Evasion (%) 55 Offensive Hacking 10 Item Schematics ----------------- None Robot Schematics ------------------ None Fabricated ------------ Nothing Alien Tech Used ----------------- None Achievements -------------- None Challenges ------------ None Game ------ Seed GatlingMobileShockpuncher Manual? 0 Play Time 00:17:10 Cumulative 56.4 hours Start 2022.07.05 @ 06:41:28 End 2022.07.05 @ 06:58:58 Sessions 1 Manual Loads 0 Difficulty Adventurer Special Mode None Game No. 60 Rogue 0 Adventurer 60 Explorer 0 Win Type - Total 0 Types 0/0/0/0/0/0/0/0/0 Lore% 34 Gallery% 45 Achievement% 30 Wizard Run 0 Options --------- ASCII 0 Keyboard 0 Movement Mouse Keybinds 0 Fullscreen 1 Font 24/Smallcaps Map View 113x50 Tactical HUD 1 Map Filters NONE Filters NONE Steam 1 RUN: 7ac48a79-a2fb-4863-a181-d4af29d64ed2